bitfinex-derivatives/quotes_SOLF0:USTF0_20250730
["timestamp","ask_amount","ask_price","bid_price","bid_amount"]
[1753899696210,3.19,179.53,179.45,3.95585541]
[1753899696704,3.19,179.53,179.44,0.97]
[1753899696905,3.19,179.53,179.37,123.217432]
[1753899696906,5.5717,179.49,179.45,5.5725]
[1753899697104,3.19,179.48,179.45,5.5725]
[1753899697412,3.19,179.48,179.42,0.97]
[1753899697608,3.19,179.52,179.46,5.5722]
[1753899698410,3.19,179.48,179.46,5.5722]
[1753899699707,3.19,179.47,179.46,5.5722]
[1753899702111,3.19,179.46,179.45,5.5726]
[1753899702312,3.19,179.46,179.41,7.29437278]
[1753899702714,3.19,179.46,179.38,0.97]
[1753899703208,5.5729,179.45,179.41,5.5737]
[1753899703401,3.19,179.44,179.38,0.97]
[1753899703606,3.19,179.44,179.36,112.12437278]
[1753899703607,3.19,179.44,179.36,113.09437278]
[1753899704012,3.19,179.43,179.4,5.5741]
[1753899704410,5.5737,179.42,179.39,5.5745]
[1753899704711,3.19,179.4,179.36,113.09437278]
[1753899704914,3.19,179.4,179.37,0.97]
[1753899705511,4.64720999,179.49,179.36,105.8]
[1753899705512,3.19,179.38,179.36,105.8]
[1753899705709,3.19,179.37,179.36,105.8]
[1753899705904,3.19,179.39,179.38,5.5746]
[1753899706111,3.19,179.38,179.36,105.8]
[1753899706816,3.19,179.45,179.37,0.97]
[1753899707619,3.19,179.43,179.41,5.5737]
[1753899707917,3.19,179.42,179.41,5.5737]
[1753899709518,3.19,179.42,179.4,5.5741]
[1753899710815,3.19,179.42,179.41,5.5739]
[1753899711817,3.19,179.45,179.39,0.97]
[1753899712519,3.19,179.45,179.44,5.5729]
[1753899714520,3.19,179.49,179.43,0.97]
[1753899715516,3.19,179.49,179.46,5.5722]
[1753899715919,6.32437278,179.51,179.43,5.5732]
[1753899716119,3.19,179.5,179.4,0.97]
[1753899717116,11.00898732,179.51,179.43,5.5731]
[1753899717320,3.19,179.46,179.43,5.5731]
[1753899718015,3.19,179.47,179.39,0.97]
[1753899718322,3.19,179.43,179.41,5.5737]
[1753899718518,6.32437278,179.42,179.33,0.98]
[1753899718718,2.99,179.41,179.33,0.98]
[1753899718922,2.99,179.41,179.31,375.64]
[1753899719116,2.99,179.41,179.32,0.98]
[1753899719719,2.99,179.38,179.29,0.98]
[1753899720023,2.99,179.35,179.27,0.98]
[1753899720219,2.99,179.34,179.27,0.98]
[1753899720520,2.99,179.36,179.28,0.98]
[1753899720722,2.99,179.36,179.33,5.5762]
[1753899721119,2.99,179.36,179.27,6.32437278]
[1753899721120,2.99,179.36,179.27,112.02437278]
[1753899721321,2.99,179.35,179.28,0.98]
[1753899721718,5.5761,179.35,179.32,5.5767]
[1753899721919,2.99,179.34,179.32,5.5767]
[1753899722113,2.99,179.34,179.28,0.98]
[1753899723623,2.99,179.34,179.32,5.5765]
[1753899723823,2.99,179.36,179.3,0.98]
[1753899724516,8.5655,179.36,179.3,0.98]
[1753899725023,2.99,179.35,179.32,5.5766]
[1753899725729,2.99,179.34,179.27,105.7]
[1753899725917,2.99,179.3,179.19,6.207132]
[1753899726230,2.99,179.3,179.2,0.98]
[1753899726524,2.99,179.3,179.21,210.72545802]
[1753899726725,2.99,179.24,179.19,105.7]
[1753899726919,2.99,179.24,179.15,6.32437278]
[1753899727121,2.99,179.24,179.15,0.98]
[1753899727326,2.99,179.24,179.2,5.5804]
[1753899727523,2.99,179.24,179.12,6.32437278]
[1753899727725,491.5913,179.36,179.12,6.32437278]
[1753899727726,8.5702,179.21,179.17,5.5813]
[1753899727921,2.99,179.2,179.17,5.5813]
[1753899728127,2.99,179.2,179.12,0.98]
[1753899728316,6.32437278,179.16,179.06,7.29542266]
[1753899728517,2.99,179.15,179.06,107.67104988]
[1753899728729,2.99,179.15,179.07,0.98]
[1753899729526,2.99,179.18,179.1,0.98]
[1753899729931,2.99,179.18,179.15,5.5819]
[1753899730228,2.99,179.18,179.1,0.98]
[1753899730630,2.99,179.18,179.17,5.5814]
[1753899732229,2.99,179.18,179.12,0.98]
[1753899732230,2.99,179.18,179.09,7.30437278]
[1753899732630,2.99,179.18,179.09,6.32437278]
[1753899732937,2.99,179.18,179.16,5.5815]
[1753899733540,2.99,179.18,179.17,5.5814]
[1753899733936,6.32437278,179.21,179.12,0.98]
[1753899733937,2.99,179.17,179.12,0.98]
[1753899734241,2.99,179.2,179.12,0.98]
[1753899734633,2.99,179.2,179.12,6.32437278]
[1753899734832,2.99,179.2,179.13,0.98]
[1753899735038,2.99,179.2,179.18,5.5809]
[1753899735240,2.99,179.23,179.18,5.5809]
[1753899735741,2.99,179.22,179.18,5.5809]
[1753899736540,6.32437278,179.21,179.06,12.14150916]
[1753899736841,2.99,179.17,179.08,3.19]
[1753899737337,2.99,179.17,179.09,6.32437278]
[1753899737544,2.99,179.2,179.1,3.19]
[1753899738545,2.99,179.2,179.13,3.19]
[1753899738941,2.99,179.2,179.19,5.5808]
[1753899739146,2.99,179.21,179.19,3.19]
[1753899739646,2.99,179.21,179.2,5.5805]
[1753899739944,2.99,179.21,179.19,8.7705]
[1753899740147,2.99,179.26,179.16,3.19]
[1753899740537,2.99,179.23,179.2,5.5804]
[1753899740846,2.99,179.26,179.16,3.19]
[1753899741141,2.99,179.25,179.22,3.19]
[1753899741348,2.99,179.23,179.2,3.19]
[1753899741546,2.99,179.23,179.21,3.19]
[1753899741748,2.99,179.22,179.21,8.7699]
[1753899742142,2.99,179.24,179.21,3.19]
[1753899742447,2.99,179.26,179.22,3.19]
[1753899742646,2.99,179.25,179.23,3.19]
[1753899743146,2.99,179.24,179.19,3.19]
[1753899743445,6.32437278,179.3,179.19,3.19]
[1753899743446,2.99,179.29,179.19,3.19]
[1753899743846,5.578,179.28,179.19,3.19]
[1753899744149,2.99,179.27,179.19,3.19]
[1753899744542,2.99,179.27,179.22,5.5796]
[1753899744743,2.99,179.27,179.22,8.7696]
[1753899744942,2.99,179.27,179.18,6.32437278]
[1753899745144,2.99,179.25,179.19,3.19]
[1753899745554,2.99,179.24,179.21,8.77]
[1753899745845,2.99,179.25,179.18,6.32437278]
[1753899746054,2.99,179.28,179.25,5.5788]
[1753899746249,2.99,179.28,179.24,3.19]
[1753899746949,5.5783,179.27,179.18,6.32437278]
[1753899747253,2.99,179.26,179.19,3.19]
[1753899748350,5.5783,179.27,179.22,5.5796]
[1753899748542,6.32437278,179.3,179.22,8.7696]
[1753899748951,3.16,179.23,179.22,8.7696]
[1753899749947,5.5783,179.27,179.23,5.5793]
[1753899750149,3.16,179.26,179.23,5.5793]
[1753899750349,3.16,179.26,179.21,2.96]
[1753899750550,5.5789,179.26,179.19,2.96]
[1753899750751,3.16,179.25,179.21,5.5801]
[1753899750950,3.16,179.25,179.19,2.96]
[1753899751150,3.16,179.23,179.19,2.96]
[1753899751550,3.16,179.24,179.19,2.96]
[1753899751743,3.16,179.24,179.22,5.5796]
[1753899751947,3.16,179.24,179.22,2.96]
[1753899752355,3.16,179.29,179.19,2.96]
[1753899752651,3.16,179.29,179.21,2.96]
[1753899753049,5.5782,179.28,179.24,5.579]
[1753899753349,3.16,179.35,179.25,2.96]
[1753899753555,5.5762,179.34,179.27,6.32437278]
[1753899753747,3.16,179.32,179.28,2.96]
[1753899754052,3.16,179.32,179.3,2.96]
[1753899754246,3.16,179.35,179.3,6.32437278]
[1753899754450,3.16,179.35,179.33,2.96]
[1753899754648,3.16,179.34,179.3,6.32437278]
[1753899754842,3.16,179.34,179.32,2.96]
[1753899755250,3.16,179.34,179.32,8.5367]
[1753899755552,3.16,179.39,179.3,6.32437278]
[1753899755754,3.16,179.39,179.27,9.28437278]
[1753899755953,3.16,179.39,179.28,2.96]
[1753899756154,5.5757,179.36,179.28,2.96]
[1753899756456,3.16,179.33,179.31,8.5368]
[1753899757154,6.32437278,179.4,179.31,8.5368]
[1753899757349,3.16,179.39,179.31,8.5368]
[1753899757549,3.16,179.33,179.31,8.5368]
[1753899759150,3.16,179.37,179.32,2.96]
[1753899759355,3.16,179.37,179.34,2.96]
[1753899759557,5.5748,179.39,179.35,2.96]
[1753899759761,3.16,179.36,179.35,2.96]
[1753899760152,3.16,179.36,179.35,5.5758]
[1753899760453,3.16,179.36,179.35,8.5358]
[1753899760658,3.16,179.37,179.35,8.5358]
[1753899761059,105.68,179.42,179.35,8.5358]
[1753899761258,3.16,179.37,179.36,5.5755]
[1753899761457,3.16,179.37,179.33,6.32437278]
[1753899761659,3.16,179.37,179.35,2.96]
[1753899762256,5.5746,179.39,179.35,8.5356]
[1753899762555,3.16,179.43,179.36,6.32437278]
[1753899762760,3.16,179.43,179.37,2.96]
[1753899762958,3.16,179.42,179.38,8.5347]
[1753899763154,3.16,179.41,179.38,8.5347]
[1753899763354,3.16,179.4,179.38,8.5347]
[1753899764353,3.16,179.4,179.39,2.96]
[1753899764564,3.16,179.49,179.39,9.28437278]
[1753899764765,3.16,179.47,179.4,2.96]
[1753899765065,3.16,179.44,179.4,2.96]
[1753899765361,3.16,179.49,179.4,2.96]
[1753899765553,5.573,179.45,179.39,6.32437278]
[1753899765750,3.16,179.43,179.4,2.96]
[1753899765963,3.16,179.44,179.39,6.32437278]
[1753899766161,3.16,179.43,179.41,2.96]
[1753899766357,3.16,179.42,179.39,9.28437278]
[1753899766559,6.32437278,179.5,179.39,9.28437278]
[1753899766560,6.32437278,179.5,179.39,6.32437278]
[1753899766763,5.5735,179.43,179.36,9.28437278]
[1753899766961,6.32437278,179.47,179.36,9.28437278]
[1753899766962,3.16,179.42,179.36,9.28437278]
[1753899767259,3.16,179.42,179.37,5.5751]
[1753899767457,3.16,179.4,179.37,5.5751]
[1753899767663,3.16,179.4,179.36,14.85977278]
[1753899767968,3.16,179.4,179.34,2.96]
[1753899768565,5.5743,179.4,179.33,6.32437278]
[1753899768759,3.16,179.38,179.36,8.5352]
[1753899769262,3.16,179.37,179.36,5.5752]
[1753899769762,3.16,179.37,179.36,8.5352]
[1753899770065,3.16,179.37,179.36,5.5752]
[1753899771462,3.16,179.37,179.34,2.96]
[1753899771463,3.16,179.43,179.35,5.5757]
[1753899771666,5.5748,179.39,179.35,5.5757]
[1753899771859,3.16,179.38,179.35,5.5757]
[1753899772058,3.16,179.38,179.36,5.5755]
[1753899772265,3.16,179.37,179.36,5.5755]
[1753899772460,3.16,179.37,179.35,2.96]
[1753899772963,3.16,179.36,179.35,8.5355]
[1753899773264,3.16,179.36,179.33,6.32437278]
[1753899773464,3.16,179.36,179.32,2.96]
[1753899773764,3.16,179.36,179.3,374.88]
[1753899774161,3.16,179.35,179.32,5.5765]
[1753899774464,3.16,179.34,179.32,2.96]
[1753899775266,3.16,179.34,179.33,5.5764]
[1753899776067,3.16,179.33,179.32,5.5766]
[1753899776365,3.16,179.32,179.3,377.84]
[1753899776570,3.16,179.32,179.3,2.96]
[1753899776861,3.16,179.33,179.3,5.5772]
[1753899777062,3.16,179.33,179.27,6.32437278]
[1753899777270,3.16,179.33,179.29,2.96]
[1753899777470,8.7364,179.33,179.3,5.5772]
[1753899777762,3.16,179.31,179.3,5.5772]
[1753899778270,3.16,179.35,179.3,2.96]
[1753899778567,6.32437278,179.41,179.32,2.96]
[1753899778568,3.16,179.36,179.32,2.96]
[1753899778768,3.15,179.35,179.34,5.5759]
[1753899780569,6.32437278,179.42,179.34,3.22]
[1753899780766,3.951558,179.41,179.32,3.22]
[1753899780970,3.15,179.37,179.3,6.32437278]
[1753899781171,3.15,179.37,179.33,3.22]
[1753899781470,3.15,179.37,179.35,5.5758]
[1753899781666,6.32437278,179.37,179.26,6.32437278]
[1753899781870,6.21983666,179.44,179.25,3.22]
[1753899781871,3.15,179.33,179.25,3.22]
[1753899782063,5.5776,179.3,179.27,5.5783]
[1753899782270,3.15,179.29,179.27,5.5783]
[1753899782467,3.15,179.29,179.25,8.7986]
[1753899782468,5.5782,179.28,179.25,8.7986]
[1753899782671,3.15,179.29,179.25,3.22]
[1753899783072,8.7278,179.29,179.25,3.22]
[1753899783377,3.15,179.28,179.21,3.22]
[1753899783773,3.15,179.33,179.23,6.32437278]
[1753899783967,3.15,179.33,179.24,3.22]
[1753899784369,3.15,179.31,179.3,5.5773]
[1753899785175,3.15,179.31,179.29,5.5775]
[1753899785368,3.15,179.31,179.25,3.22]
[1753899785569,3.15,179.31,179.23,9.54437278]
[1753899785770,3.15,179.31,179.29,5.5776]
[1753899785967,3.15,179.31,179.27,3.22]
[1753899786175,3.15,179.31,179.29,5.5777]
[1753899786676,5.5769,179.32,179.27,3.22]
[1753899787172,5.5769,179.32,179.23,6.32437278]
[1753899787173,3.15,179.29,179.24,3.22]
[1753899787369,3.15,179.32,179.24,3.22]
[1753899787574,3.15,179.38,179.27,3.22]
[1753899787775,3.15,179.34,179.27,3.22]
[1753899788175,4.65901096,179.39,179.33,3.22]
[1753899788380,3.96583955,179.38,179.35,6.32437278]
[1753899788574,4.65901096,179.45,179.38,5.5749]
[1753899788778,5.5739,179.42,179.38,3.22]
[1753899788981,3.96441637,179.44,179.38,3.22]
[1753899788982,3.15,179.39,179.38,3.22]
[1753899789479,3.15,179.45,179.39,3.22]
[1753899789870,3.15,179.45,179.42,5.5734]
[1753899790073,3.15,179.44,179.42,3.22]
[1753899790577,3.15,179.45,179.42,3.22]
[1753899790880,4.65901096,179.51,179.33,11.1529]
[1753899790881,3.15,179.51,179.44,3.22]
[1753899791081,3.15,179.49,179.44,3.22]
[1753899791375,6.32437278,179.52,179.44,3.22]
[1753899791376,3.15,179.47,179.44,3.22]
[1753899791580,3.15,179.5,179.44,6.32437278]
[1753899791884,3.15,179.5,179.45,3.22]
[1753899792086,3.15,179.49,179.47,3.22]
[1753899792675,3.15,179.53,179.44,6.32437278]
[1753899792981,3.15,179.51,179.44,6.32437278]
[1753899793182,3.15,179.54,179.45,3.22]
[1753899793377,3.15,179.52,179.45,3.22]
[1753899793573,4.65901096,179.57,179.49,5.5713]
[1753899793777,3.15,179.55,179.48,3.22]
[1753899794181,5.5705,179.52,179.47,5.5718]
[1753899794491,3.15,179.51,179.45,3.22]
[1753899794780,3.15,179.51,179.47,8.792]
[1753899794978,3.15,179.51,179.44,3.22]
[1753899795687,5.5715,179.49,179.44,8.7927]
[1753899795886,3.15,179.51,179.44,3.22]
[1753899796080,3.15,179.49,179.44,3.22]
[1753899796275,3.15,179.49,179.43,3.22]
[1753899796478,3.15,179.49,179.47,3.22]
[1753899796684,3.15,179.55,179.46,3.22]
[1753899796878,3.95908029,179.54,179.48,6.32437278]
[1753899797082,3.15,179.53,179.48,6.32437278]
[1753899797383,3.15,179.55,179.53,3.22]
[1753899798285,3.15,179.59,179.49,3.22]
[1753899798488,3.15,179.57,179.49,3.22]
[1753899798781,3.15,179.54,179.51,8.7907]
[1753899798987,3.15,179.57,179.49,3.22]
[1753899799481,3.15,179.56,179.53,8.79]
[1753899799683,3.15,179.61,179.49,3.22]
[1753899799882,3.15,179.59,179.49,3.22]
[1753899800088,7.10360703,179.58,179.52,3.22]
[1753899800288,5.569,179.57,179.54,5.5696]
[1753899800489,3.15,179.56,179.54,8.7896]
[1753899800686,10.98338374,179.62,179.55,3.22]
[1753899800886,3.15,179.58,179.55,3.22]
[1753899801089,3.15,179.57,179.55,3.22]
[1753899801483,5.5687,179.58,179.51,6.32437278]
[1753899801683,3.15,179.55,179.54,3.22]
[1753899801883,3.15,179.61,179.54,3.22]
[1753899802083,5.5689,179.58,179.54,3.22]
[1753899802284,3.15,179.56,179.52,3.22]
[1753899802589,3.15,179.55,179.53,3.22]
[1753899802789,3.15,179.55,179.54,5.5699]
[1753899802986,3.15,179.55,179.53,3.22]
[1753899803485,3.15,179.54,179.53,8.7899]
[1753899803683,6.32437278,179.59,179.51,3.22]
[1753899803879,3.15,179.52,179.5,3.22]
[1753899804084,3.15,179.52,179.51,5.5708]
[1753899804785,3.15,179.58,179.5,5.5711]
[1753899804986,3.15,179.58,179.49,3.22]
[1753899805183,3.15,179.58,179.5,5.571]
[1753899805390,3.15,179.58,179.49,3.22]
[1753899805886,3.15,179.58,179.51,3.22]
[1753899806391,5.5697,179.55,179.51,8.7906]
[1753899806588,3.15,179.53,179.47,9.54437278]
[1753899806789,3.15,179.53,179.47,3.22]
[1753899807087,3.15,179.53,179.44,6.32437278]
[1753899807088,3.15,179.53,179.45,3.22]
[1753899807490,3.15,179.49,179.46,8.7922]
[1753899807986,3.15,179.49,179.47,5.5719]
[1753899808188,3.15,179.49,179.44,6.32437278]
[1753899808189,3.15,179.51,179.48,3.22]
[1753899808689,3.15,179.51,179.49,8.7112]
[1753899808893,3.27,179.51,179.49,8.7112]
[1753899809187,3.27,179.51,179.49,5.5712]
[1753899809387,5.5707,179.52,179.49,5.5712]
[1753899809590,3.27,179.5,179.49,5.5712]
[1753899809789,3.27,179.49,179.47,3.14]
[1753899809992,3.27,179.52,179.48,3.14]
[1753899810294,3.27,179.51,179.49,3.14]
[1753899810688,3.27,179.51,179.5,5.5712]
[1753899810888,3.27,179.55,179.52,3.14]
[1753899811095,3.27,179.55,179.47,6.32437278]
[1753899811096,3.27,179.61,179.54,3.14]
[1753899811292,5.5689,179.58,179.54,8.7097]
[1753899811588,3.27,179.56,179.54,8.7097]
[1753899811790,3.27,179.56,179.55,5.5696]
[1753899812196,3.27,179.56,179.54,3.14]
[1753899812496,3.27,179.57,179.5,6.32437278]
[1753899812688,3.27,179.59,179.51,3.14]
[1753899812885,3.27,179.59,179.58,5.5687]
[1753899813085,105.42,179.65,179.53,6.32437278]
[1753899813298,3.27,179.64,179.57,3.14]
[1753899813596,3.27,179.63,179.62,5.5674]
[1753899813990,3.27,179.66,179.64,5.5665]
[1753899814195,3.27,179.71,179.62,9.46437278]
[1753899814399,3.27,179.71,179.63,3.14]
[1753899814596,3.27,179.74,179.68,3.14]
[1753899814898,3.27,179.74,179.68,6.32437278]
[1753899815088,3.27,179.74,179.72,8.7041]
[1753899815398,3.27,179.74,179.72,3.14]
[1753899815594,3.27,179.73,179.7,8.7047]
[1753899815901,3.27,179.73,179.71,3.14]
[1753899816194,3.27,179.73,179.71,8.7044]
[1753899816517,3.27,179.79,179.71,6.32437278]
[1753899816795,3.27,179.79,179.72,3.14]
[1753899816991,6.32437278,179.81,179.71,6.32437278]
[1753899817201,105.24,179.83,179.72,3.14]
[1753899817391,3.27,179.84,179.74,6.32437278]
[1753899817592,3.27,179.84,179.75,3.14]
[1753899817795,3.27,179.87,179.76,6.32437278]
[1753899817989,3.27,179.87,179.79,5.5621]
[1753899818192,3.27,179.87,179.78,3.14]
[1753899818386,3.27,179.87,179.79,6.32437278]
[1753899818690,6.32437278,179.9,179.8,3.14]
[1753899818998,3.27,179.89,179.8,3.14]
[1753899819497,5.5606,179.85,179.8,3.14]
[1753899819691,5.5606,179.85,179.79,6.32437278]
[1753899819692,3.27,179.82,179.79,3.14]
[1753899819897,3.27,179.89,179.79,3.14]
[1753899820095,8.8297,179.87,179.8,3.14]
[1753899820301,3.27,179.87,179.8,3.14]
[1753899820487,3.27,179.89,179.8,3.14]
[1753899820693,3.27,179.89,179.79,6.32437278]
[1753899820694,3.27,179.89,179.82,3.14]
[1753899820994,3.27,179.89,179.8,3.14]
[1753899821599,5.5599,179.87,179.81,5.5615]
[1753899821897,3.27,179.88,179.8,3.14]
[1753899822195,5.5609,179.84,179.8,3.14]
[1753899822392,3.27,179.88,179.8,3.14]
[1753899822988,3.27,179.85,179.77,3.14]
[1753899825291,6.32437278,179.86,179.78,3.14]
[1753899825292,3.27,179.82,179.78,3.14]
[1753899825493,3.27,179.8,179.78,3.14]
[1753899825701,3.27,179.83,179.79,3.14]
[1753899825889,6.32437278,179.86,179.79,3.14]
[1753899826091,6.32437278,179.86,179.74,6.32437278]
[1753899826297,3.27,179.8,179.77,5.5627]
[1753899827995,3.27,179.86,179.84,3.14]
[1753899828196,3.27,179.83,179.8,3.14]
[1753899828705,3.27,179.83,179.76,3.14]
[1753899828913,3.27,179.86,179.77,6.32437278]
[1753899829207,3.27,179.86,179.78,3.14]
[1753899829595,5.5592,179.89,179.8,6.32437278]
[1753899829907,3.27,179.88,179.81,3.14]
[1753899830096,374.46,179.94,179.84,3.14]
[1753899830097,3.27,179.92,179.84,3.14]
[1753899830297,3.27,179.91,179.88,8.6991]
[1753899830602,3.27,179.91,179.84,3.14]
[1753899830900,3.27,179.93,179.9,3.14]
[1753899831404,3.27,179.93,179.91,3.14]
[1753899831601,3.27,179.96,179.92,3.14]
[1753899831803,3.27,179.96,179.93,3.14]
[1753899832105,3.27,179.95,179.87,3.14]
[1753899832605,3.27,179.94,179.91,8.6982]
[1753899832901,3.27,179.94,179.91,3.14]
[1753899833301,6.32437278,179.95,179.88,3.14]
[1753899833600,3.27,179.94,179.88,3.14]
[1753899833807,3.27,179.94,179.85,3.14]
[1753899834302,6.32437278,179.92,179.81,6.32437278]
[1753899834508,3.27,179.91,179.83,3.14]
[1753899834802,3.27,179.88,179.81,8.7015]
[1753899835198,3.27,179.88,179.79,3.14]
[1753899835402,3.27,179.83,179.75,111.34437278]
[1753899835600,3.27,179.83,179.81,3.14]
[1753899835800,6.32437278,179.89,179.81,3.14]
[1753899835998,6.32437278,179.89,179.75,111.34437278]
[1753899835999,3.27,179.85,179.78,3.14]
[1753899836396,120.7685161,179.96,179.77,5.5628]
[1753899836397,5.5618,179.81,179.77,5.5628]
[1753899836600,3.27,179.8,179.77,5.5628]
[1753899836899,3.27,179.79,179.75,8.7032]
[1753899837099,3.27,179.78,179.75,3.14]
[1753899837708,3.27,179.78,179.76,3.14]
[1753899838004,3.27,179.78,179.72,374.32]
[1753899838204,3.27,179.78,179.75,8.7032]
[1753899838414,3.27,179.82,179.75,3.14]
[1753899838704,3.27,179.82,179.72,374.32]
[1753899838705,2.96,179.79,179.76,2.99]
[1753899838900,2.96,179.78,179.76,2.99]
[1753899840207,2.96,179.82,179.74,5.5637]
[1753899840405,2.96,179.79,179.73,2.99]
[1753899841403,11.88627278,179.8,179.75,5.5634]
[1753899841702,2.96,179.79,179.73,2.99]
[1753899841908,2.96,179.77,179.72,8.5541]
[1753899842105,2.96,179.77,179.72,2.99]
[1753899842306,6.32437278,179.8,179.7,210.65183584]
[1753899842608,2.96,179.77,179.71,2.99]
[1753899842804,6.32437278,179.8,179.71,2.99]
[1753899843005,2.96,179.79,179.71,2.99]
[1753899844509,2.96,179.79,179.75,5.5632]
[1753899844706,11.88727278,179.77,179.71,2.99]
[1753899844906,2.96,179.75,179.71,2.99]
[1753899845107,2.96,179.74,179.72,2.99]
[1753899845514,2.96,179.76,179.7,210.65183584]
[1753899845915,2.96,179.74,179.72,2.99]
[1753899846107,2.96,179.76,179.73,2.99]
[1753899846411,2.96,179.73,179.71,2.99]
[1753899846715,2.96,179.73,179.71,8.5545]
[1753899846918,2.96,179.73,179.71,2.99]
[1753899847612,2.96,179.77,179.72,2.99]
[1753899848213,6.32437278,179.78,179.72,2.99]
[1753899848412,5.563,179.77,179.71,2.99]
[1753899848614,2.96,179.75,179.72,2.99]
[1753899849120,5.5631,179.76,179.7,210.65183584]
[1753899849422,2.96,179.73,179.71,8.5544]
[1753899849614,2.96,179.77,179.71,2.99]
[1753899849816,2.96,179.76,179.7,210.65183584]
[1753899850121,2.96,179.74,179.68,107.99]
[1753899850619,2.96,179.74,179.69,5.5653]
[1753899851118,8.5238,179.74,179.68,110.5655]
[1753899851320,2.96,179.74,179.68,105.0]
[1753899852422,2.96,179.71,179.64,105.02]
[1753899852622,2.96,179.71,179.65,2.99]
[1753899852826,2.96,179.71,179.64,105.02]
[1753899853619,6.32437278,179.69,179.57,6.32437278]
[1753899853825,5.5665,179.66,179.6,5.5679]
[1753899854124,2.96,179.68,179.59,2.99]
[1753899854517,6.32437278,179.69,179.59,2.99]
[1753899854918,2.96,179.61,179.59,2.99]
[1753899855529,2.96,179.59,179.58,105.02]
[1753899855724,2.96,179.58,179.56,2.99]
[1753899856128,6.32437278,179.63,179.54,105.02]
[1753899856336,2.96,179.62,179.55,2.99]
[1753899857130,6.32437278,179.6,179.54,105.02]
[1753899857433,2.96,179.59,179.52,2.99]
[1753899858433,2.96,179.61,179.56,2.99]
[1753899858735,6.21983666,179.7,179.52,108.03]
[1753899858736,2.96,179.58,179.52,108.03]
[1753899859032,2.96,179.58,179.53,2.99]
[1753899859427,2.96,179.6,179.53,2.99]
[1753899860321,2.96,179.6,179.52,105.04]
[1753899860533,2.96,179.59,179.57,2.99]
[1753899860726,5.5669,179.64,179.53,6.32437278]
[1753899860930,6.91483109,179.63,179.56,9.31437278]
[1753899861128,2.96,179.63,179.57,2.99]
[1753899861832,2.96,179.65,179.57,2.99]
[1753899862034,2.96,179.67,179.6,2.99]
[1753899862530,2.96,179.7,179.63,2.99]
[1753899862733,2.96,179.68,179.6,2.99]